[Event "*** Titled Tuesday Blitz"]
[Site "Chess.com"]
[Date "2020.05.12"]
[Round "2"]
[White "LionTheLeon_06"]
[Black "Chessmatus"]
[Result "1-0"]
[WhiteElo "2695"]
[BlackElo "2468"]
[TimeControl "180+1"]
[EndTime "10:18:51 PDT"]
[Termination "LionTheLeon_06 won by resignation"]

1. d4 {[%clk 0:03:00.9]} 1... Nf6 {[%clk 0:02:59]} 2. c4 {[%clk 0:03:00.7]} 2...
g6 {[%clk 0:02:59]} 3. Nc3 {[%clk 0:03:00.7]} 3... d5 {[%clk 0:02:59.1]} 4. Nf3
{[%clk 0:02:58.7]} 4... Bg7 {[%clk 0:02:58.9]} 5. e3 {[%clk 0:02:59.1]} 5... O-O
{[%clk 0:02:58.4]} 6. h3 {[%clk 0:02:59.5]} 6... c5 {[%clk 0:02:50.6]} 7. dxc5
{[%clk 0:02:50.5]} 7... dxc4 {[%clk 0:02:50.7]} 8. Qxd8 {[%clk 0:02:49.8]} 8...
Rxd8 {[%clk 0:02:51.6]} 9. Bxc4 {[%clk 0:02:49.8]} 9... Nbd7 {[%clk 0:02:52.1]}
10. c6 {[%clk 0:02:42.4]} 10... bxc6 {[%clk 0:02:53]} 11. O-O {[%clk 0:02:41.3]}
11... Bb7 {[%clk 0:02:49]} 12. e4 {[%clk 0:02:35.7]} 12... Nb6 {[%clk
0:02:29.9]} 13. Bb3 {[%clk 0:02:33.3]} 13... c5 {[%clk 0:02:30.2]} 14. Re1
{[%clk 0:02:31.9]} 14... Nfd7 {[%clk 0:02:04.3]} 15. Bg5 {[%clk 0:02:28.7]}
15... Re8 {[%clk 0:01:58.9]} 16. Rad1 {[%clk 0:02:16.9]} 16... Rac8 {[%clk
0:01:44.7]} 17. a4 {[%clk 0:01:45.7]} 17... c4 {[%clk 0:01:38.6]} 18. Bc2 {[%clk
0:01:45.6]} 18... a5 {[%clk 0:01:32.9]} 19. Nd4 {[%clk 0:01:45.3]} 19... Nc5
{[%clk 0:01:30.7]} 20. Ndb5 {[%clk 0:01:45.4]} 20... Kf8 {[%clk 0:01:17.6]} 21.
Be3 {[%clk 0:01:44.5]} 21... Nbd7 {[%clk 0:01:09.8]} 22. f4 {[%clk 0:01:32.5]}
22... Red8 {[%clk 0:00:43]} 23. Rd2 {[%clk 0:01:24.4]} 23... Ne6 {[%clk
0:00:41.6]} 24. Red1 {[%clk 0:01:10.8]} 24... Ke8 {[%clk 0:00:41.7]} 25. e5
{[%clk 0:00:44.1]} 25... g5 {[%clk 0:00:35.7]} 26. f5 {[%clk 0:00:37.2]} 26...
Nf4 {[%clk 0:00:35.7]} 27. e6 {[%clk 0:00:36]} 27... fxe6 {[%clk 0:00:32]} 28.
fxe6 {[%clk 0:00:36.3]} 28... Nxe6 {[%clk 0:00:30.9]} 29. Bxh7 {[%clk
0:00:35.8]} 29... Nf6 {[%clk 0:00:25.2]} 30. Bg6+ {[%clk 0:00:34.8]} 30... Kf8
{[%clk 0:00:25.5]} 31. Rxd8+ {[%clk 0:00:34.3]} 31... Rxd8 {[%clk 0:00:26.4]}
32. Rxd8+ {[%clk 0:00:34.4]} 32... Nxd8 {[%clk 0:00:27.3]} 33. Bxg5 {[%clk
0:00:34.8]} 33... Nd5 {[%clk 0:00:23.9]} 34. Nxd5 {[%clk 0:00:29.6]} 34... Bxd5
{[%clk 0:00:24.8]} 35. Nc3 {[%clk 0:00:28]} 35... Bc6 {[%clk 0:00:25]} 36. Be3
{[%clk 0:00:25.5]} 36... Nb7 {[%clk 0:00:21.7]} 37. Bc2 {[%clk 0:00:22.6]} 37...
e5 {[%clk 0:00:17.4]} 38. Kf2 {[%clk 0:00:21.1]} 38... Ke7 {[%clk 0:00:17.4]}
39. g4 {[%clk 0:00:21.2]} 39... Ke6 {[%clk 0:00:17.3]} 40. h4 {[%clk 0:00:21]}
40... Bf6 {[%clk 0:00:16.9]} 41. Bf5+ {[%clk 0:00:21]} 41... Kf7 {[%clk
0:00:16.7]} 42. Kg3 {[%clk 0:00:20.9]} 42... Nd6 {[%clk 0:00:15.6]} 43. Bc2
{[%clk 0:00:20.9]} 43... e4 {[%clk 0:00:16]} 44. Bf4 {[%clk 0:00:20.8]} 44...
Nb7 {[%clk 0:00:14.8]} 45. g5 {[%clk 0:00:20.9]} 45... Bxc3 {[%clk 0:00:14.7]}
46. bxc3 {[%clk 0:00:20.8]} 46... Nc5 {[%clk 0:00:15.6]} 47. Bc7 {[%clk
0:00:19.4]} 47... Bxa4 {[%clk 0:00:15.8]} 48. Bxa4 {[%clk 0:00:19]} 48... Nxa4
{[%clk 0:00:16.7]} 49. Bxa5 {[%clk 0:00:19.5]} 49... Nb2 {[%clk 0:00:15.9]} 50.
Kf4 {[%clk 0:00:19.1]} 50... Kg6 {[%clk 0:00:12.6]} 51. Kxe4 {[%clk 0:00:19.2]}
51... Nd1 {[%clk 0:00:12.7]} 52. Kd4 {[%clk 0:00:18.9]} 52... Kh5 {[%clk
0:00:12.9]} 53. Bd8 {[%clk 0:00:18.2]} 53... Kxh4 {[%clk 0:00:13]} 54. g6+
{[%clk 0:00:18.1]} 1-0

[Event "*** Titled Tuesday Blitz"]
[Site "Chess.com"]
[Date "2020.05.12"]
[Round "2"]
[White "AustrianFalcon"]
[Black "VitaliyBernadskiy"]
[Result "1-0"]
[WhiteElo "2467"]
[BlackElo "2731"]
[TimeControl "180+1"]
[EndTime "10:18:51 PDT"]
[Termination "AustrianFalcon won on time"]

1. e4 {[%clk 0:02:56]} 1... c5 {[%clk 0:02:59.8]} 2. Nf3 {[%clk 0:02:54.5]} 2...
d6 {[%clk 0:03:00.4]} 3. d4 {[%clk 0:02:53.6]} 3... cxd4 {[%clk 0:03:01.3]} 4.
Nxd4 {[%clk 0:02:54.2]} 4... Nf6 {[%clk 0:03:01.8]} 5. Nc3 {[%clk 0:02:52.5]}
5... a6 {[%clk 0:03:02.2]} 6. h3 {[%clk 0:02:51]} 6... e5 {[%clk 0:03:01.6]} 7.
Nb3 {[%clk 0:02:50.2]} 7... Be6 {[%clk 0:02:52.1]} 8. f4 {[%clk 0:02:49.2]} 8...
Nc6 {[%clk 0:02:48.4]} 9. Be2 {[%clk 0:02:40.8]} 9... Be7 {[%clk 0:02:44]} 10.
g4 {[%clk 0:02:35.3]} 10... exf4 {[%clk 0:02:34]} 11. Bxf4 {[%clk 0:02:36.2]}
11... Nd7 {[%clk 0:02:33.8]} 12. Qd3 {[%clk 0:02:21]} 12... Nde5 {[%clk
0:02:31.5]} 13. Qe3 {[%clk 0:02:20.8]} 13... Bh4+ {[%clk 0:02:31.3]} 14. Bg3
{[%clk 0:02:15.2]} 14... O-O {[%clk 0:02:27.9]} 15. O-O-O {[%clk 0:02:09.9]}
15... Bxg3 {[%clk 0:02:24]} 16. Qxg3 {[%clk 0:02:09.4]} 16... Rc8 {[%clk
0:02:24.9]} 17. g5 {[%clk 0:02:02.3]} 17... Qc7 {[%clk 0:01:52.8]} 18. Kb1
{[%clk 0:01:55.4]} 18... Nb4 {[%clk 0:01:51.8]} 19. h4 {[%clk 0:01:40.8]} 19...
Qb6 {[%clk 0:01:43.1]} 20. h5 {[%clk 0:01:24.8]} 20... f5 {[%clk 0:01:22.4]} 21.
gxf6 {[%clk 0:01:13.8]} 21... Rxf6 {[%clk 0:01:22.6]} 22. Nd4 {[%clk 0:00:50.9]}
22... Bc4 {[%clk 0:01:08.7]} 23. Bg4 {[%clk 0:00:27.9]} 23... Rcf8 {[%clk
0:00:57.9]} 24. Nf5 {[%clk 0:00:25.1]} 24... Qc7 {[%clk 0:00:52.1]} 25. Rhg1
{[%clk 0:00:19.5]} 25... Be6 {[%clk 0:00:32.5]} 26. a3 {[%clk 0:00:11.5]} 26...
Nbc6 {[%clk 0:00:30.3]} 27. Nd5 {[%clk 0:00:11.3]} 27... Bxd5 {[%clk 0:00:27.6]}
28. exd5 {[%clk 0:00:12.2]} 28... Nxg4 {[%clk 0:00:22]} 29. Qxg4 {[%clk
0:00:08]} 29... Rxf5 {[%clk 0:00:14.1]} 30. dxc6 {[%clk 0:00:08]} 30... bxc6
{[%clk 0:00:13.4]} 31. Rxd6 {[%clk 0:00:08.5]} 31... Rf1+ {[%clk 0:00:08.8]} 32.
Rd1 {[%clk 0:00:09]} 32... Rxd1+ {[%clk 0:00:08.7]} 33. Rxd1 {[%clk 0:00:08.5]}
33... h6 {[%clk 0:00:07.4]} 34. Rd7 {[%clk 0:00:08.3]} 34... Qe5 {[%clk
0:00:07.6]} 35. Qc4+ {[%clk 0:00:07.7]} 35... Kh8 {[%clk 0:00:07.6]} 36. Qxc6
{[%clk 0:00:07.6]} 36... Qxh5 {[%clk 0:00:07.7]} 37. Rd5 {[%clk 0:00:05.2]}
37... Qh1+ {[%clk 0:00:06.7]} 38. Ka2 {[%clk 0:00:05.6]} 38... Qf3 {[%clk
0:00:06.7]} 39. Rc5 {[%clk 0:00:05.4]} 39... Qf7+ {[%clk 0:00:03.7]} 40. c4
{[%clk 0:00:04.6]} 40... a5 {[%clk 0:00:03.8]} 41. Rxa5 {[%clk 0:00:03.9]} 41...
Re8 {[%clk 0:00:03.1]} 42. Rd5 {[%clk 0:00:04]} 42... Re2 {[%clk 0:00:02.7]} 43.
Qb5 {[%clk 0:00:03.7]} 43... Qf3 {[%clk 0:00:02.1]} 44. a4 {[%clk 0:00:03.5]}
1-0

[Event "*** Titled Tuesday Blitz"]
[Site "Chess.com"]
[Date "2020.05.12"]
[Round "2"]
[White "Oligan22"]
[Black "Kapibara_Warri0r"]
[Result "1-0"]
[WhiteElo "2397"]
[BlackElo "2083"]
[TimeControl "180+1"]
[EndTime "10:18:52 PDT"]
[Termination "Oligan22 won on time"]

1. e4 {[%clk 0:02:52.7]} 1... e5 {[%clk 0:02:59.9]} 2. Nf3 {[%clk 0:02:52.3]}
2... Nc6 {[%clk 0:02:59.9]} 3. Bb5 {[%clk 0:02:52.2]} 3... a6 {[%clk 0:02:59]}
4. Ba4 {[%clk 0:02:51.8]} 4... d6 {[%clk 0:02:58.8]} 5. c3 {[%clk 0:02:51.1]}
5... g6 {[%clk 0:02:58.7]} 6. d4 {[%clk 0:02:50.7]} 6... Bd7 {[%clk 0:02:59]} 7.
d5 {[%clk 0:02:46.6]} 7... Nb8 {[%clk 0:02:52.5]} 8. c4 {[%clk 0:02:46.1]} 8...
Bg7 {[%clk 0:02:45.6]} 9. Nc3 {[%clk 0:02:42.3]} 9... Ne7 {[%clk 0:02:41.3]} 10.
O-O {[%clk 0:02:34]} 10... O-O {[%clk 0:02:40.8]} 11. b4 {[%clk 0:02:08.6]}
11... Bg4 {[%clk 0:02:31.6]} 12. h3 {[%clk 0:02:04.9]} 12... Bxf3 {[%clk
0:02:31]} 13. Qxf3 {[%clk 0:02:05.4]} 13... f5 {[%clk 0:02:28.5]} 14. c5 {[%clk
0:01:59.2]} 14... h6 {[%clk 0:02:14.8]} 15. exf5 {[%clk 0:01:41]} 15... gxf5
{[%clk 0:01:57.7]} 16. Qh5 {[%clk 0:01:40.9]} 16... f4 {[%clk 0:01:50.9]} 17.
Ne4 {[%clk 0:01:35.7]} 17... Nf5 {[%clk 0:01:31.4]} 18. Bc2 {[%clk 0:01:21.5]}
18... Nd7 {[%clk 0:01:15.9]} 19. Qg6 {[%clk 0:01:03.8]} 19... Qe8 {[%clk
0:01:05.9]} 20. Qe6+ {[%clk 0:00:56.7]} 20... Kh8 {[%clk 0:00:47.9]} 21. Nxd6
{[%clk 0:00:41.5]} 21... Nxd6 {[%clk 0:00:36.5]} 22. cxd6 {[%clk 0:00:41]} 22...
cxd6 {[%clk 0:00:34.2]} 23. Qxd6 {[%clk 0:00:40.2]} 23... e4 {[%clk 0:00:33.7]}
24. Rb1 {[%clk 0:00:32.9]} 24... f3 {[%clk 0:00:33.5]} 25. Bb2 {[%clk
0:00:30.6]} 25... Qf7 {[%clk 0:00:16.8]} 26. Qxh6+ {[%clk 0:00:29.2]} 26... Kg8
{[%clk 0:00:15.9]} 27. Bxg7 {[%clk 0:00:28]} 27... Qxg7 {[%clk 0:00:15.7]} 28.
Qxg7+ {[%clk 0:00:28.9]} 28... Kxg7 {[%clk 0:00:16.6]} 29. Bxe4 {[%clk
0:00:29.1]} 29... fxg2 {[%clk 0:00:15.1]} 30. Bxg2 {[%clk 0:00:30]} 30... Ne5
{[%clk 0:00:12.9]} 31. Rfe1 {[%clk 0:00:28.6]} 31... Nd3 {[%clk 0:00:10.4]} 32.
Re7+ {[%clk 0:00:28]} 32... Rf7 {[%clk 0:00:10.7]} 33. Rxf7+ {[%clk 0:00:18.4]}
33... Kxf7 {[%clk 0:00:11.6]} 34. a3 {[%clk 0:00:18.1]} 34... Rd8 {[%clk
0:00:10.5]} 35. Rd1 {[%clk 0:00:18.6]} 35... Nf4 {[%clk 0:00:10.2]} 36. Rd2
{[%clk 0:00:16.3]} 36... Kf6 {[%clk 0:00:10.3]} 37. h4 {[%clk 0:00:14.8]} 37...
Ke5 {[%clk 0:00:10.4]} 38. Kh2 {[%clk 0:00:14.3]} 38... Rg8 {[%clk 0:00:09.2]}
39. Bf3 {[%clk 0:00:12.2]} 39... Rh8 {[%clk 0:00:09.2]} 40. Kg3 {[%clk
0:00:11.9]} 40... Rg8+ {[%clk 0:00:09.1]} 41. Bg4 {[%clk 0:00:12.2]} 41... Nh5+
{[%clk 0:00:07.2]} 42. Kh3 {[%clk 0:00:12.5]} 42... Nf4+ {[%clk 0:00:06.9]} 43.
Kg3 {[%clk 0:00:13.2]} 43... Nh5+ {[%clk 0:00:07.1]} 44. Kf3 {[%clk 0:00:13.8]}
44... Rf8+ {[%clk 0:00:05.6]} 45. Ke3 {[%clk 0:00:13.9]} 45... Nf4 {[%clk
0:00:05.1]} 46. Bf3 {[%clk 0:00:13.8]} 46... Re8 {[%clk 0:00:03.8]} 47. d6
{[%clk 0:00:13.4]} 47... Kf5+ {[%clk 0:00:03.3]} 48. Kd4 {[%clk 0:00:13.7]}
48... Rd8 {[%clk 0:00:03.2]} 49. Kc5 {[%clk 0:00:14]} 49... Ne6+ {[%clk
0:00:03.2]} 50. Kb6 {[%clk 0:00:14.3]} 50... Rd7 {[%clk 0:00:03.8]} 51. Bxb7
{[%clk 0:00:13.7]} 1-0

[Event "*** Titled Tuesday Blitz"]
[Site "Chess.com"]
[Date "2020.05.12"]
[Round "2"]
[White "Sjakkerntobi"]
[Black "GameOverBro"]
[Result "1/2-1/2"]
[WhiteElo "2276"]
[BlackElo "2483"]
[TimeControl "180+1"]
[EndTime "10:18:54 PDT"]
[Termination "Game drawn by repetition"]

1. e4 {[%clk 0:03:00.9]} 1... d6 {[%clk 0:02:27.5]} 2. d4 {[%clk 0:02:58]} 2...
Nf6 {[%clk 0:02:24.2]} 3. Nc3 {[%clk 0:02:50.9]} 3... e5 {[%clk 0:02:24.1]} 4.
Nf3 {[%clk 0:02:50.1]} 4... Nbd7 {[%clk 0:02:24.3]} 5. dxe5 {[%clk 0:02:49.4]}
5... dxe5 {[%clk 0:02:24.1]} 6. Bc4 {[%clk 0:02:48.8]} 6... Be7 {[%clk
0:02:24.1]} 7. O-O {[%clk 0:02:47]} 7... c6 {[%clk 0:02:24.5]} 8. Re1 {[%clk
0:02:46.9]} 8... O-O {[%clk 0:02:24.7]} 9. a4 {[%clk 0:02:44.2]} 9... a5 {[%clk
0:02:23.7]} 10. Ba2 {[%clk 0:02:39.2]} 10... Qc7 {[%clk 0:02:23.4]} 11. Qe2
{[%clk 0:02:32.8]} 11... Nc5 {[%clk 0:02:21.9]} 12. Nd2 {[%clk 0:02:28.9]} 12...
Bg4 {[%clk 0:02:19.8]} 13. f3 {[%clk 0:02:28.6]} 13... Be6 {[%clk 0:02:19]} 14.
Bxe6 {[%clk 0:02:28.7]} 14... Nxe6 {[%clk 0:02:19.7]} 15. Nc4 {[%clk 0:02:29.6]}
15... Nd4 {[%clk 0:02:19]} 16. Qf2 {[%clk 0:02:26.6]} 16... Nd7 {[%clk 0:02:05]}
17. Be3 {[%clk 0:02:17.1]} 17... Bc5 {[%clk 0:01:58.7]} 18. Rad1 {[%clk
0:02:04.3]} 18... Rfd8 {[%clk 0:01:50.3]} 19. Nxe5 {[%clk 0:01:12.7]} 19... Nxe5
{[%clk 0:01:21.4]} 20. Bxd4 {[%clk 0:01:09.9]} 20... Bxd4 {[%clk 0:01:05.3]} 21.
Rxd4 {[%clk 0:01:10.8]} 21... Rxd4 {[%clk 0:01:05.8]} 22. Qxd4 {[%clk
0:01:09.1]} 22... Rd8 {[%clk 0:01:06.2]} 23. Qc5 {[%clk 0:00:57.2]} 23... b6
{[%clk 0:00:55.3]} 24. Qf2 {[%clk 0:00:56.1]} 24... Nc4 {[%clk 0:00:42.9]} 25.
b3 {[%clk 0:00:55.3]} 25... Qe5 {[%clk 0:00:36.3]} 26. Rd1 {[%clk 0:00:30.4]}
26... Rxd1+ {[%clk 0:00:35.1]} 27. Nxd1 {[%clk 0:00:31.3]} 27... Qa1 {[%clk
0:00:16.5]} 28. Qf1 {[%clk 0:00:23.5]} 28... Ne5 {[%clk 0:00:14.7]} 29. Ne3
{[%clk 0:00:22.9]} 29... Qd4 {[%clk 0:00:13.7]} 30. Qf2 {[%clk 0:00:21.7]} 30...
g6 {[%clk 0:00:14.1]} 31. Nf1 {[%clk 0:00:21]} 31... Qc3 {[%clk 0:00:13.8]} 32.
Qd2 {[%clk 0:00:20.7]} 32... Qc5+ {[%clk 0:00:13.4]} 33. Ne3 {[%clk 0:00:20.9]}
33... h5 {[%clk 0:00:12.4]} 34. h3 {[%clk 0:00:20.8]} 34... b5 {[%clk
0:00:12.9]} 35. Kh1 {[%clk 0:00:18.7]} 35... bxa4 {[%clk 0:00:13.1]} 36. bxa4
{[%clk 0:00:19.6]} 36... Kg7 {[%clk 0:00:10.9]} 37. c3 {[%clk 0:00:18.4]} 37...
Kg8 {[%clk 0:00:09.6]} 38. Qd4 {[%clk 0:00:18.2]} 38... Qe7 {[%clk 0:00:10.2]}
39. Nc4 {[%clk 0:00:17.6]} 39... Nxc4 {[%clk 0:00:08.1]} 40. Qxc4 {[%clk
0:00:18.5]} 40... Qd7 {[%clk 0:00:07.9]} 41. Qd4 {[%clk 0:00:18.6]} 41... Qb7
{[%clk 0:00:06.9]} 42. Kh2 {[%clk 0:00:17.9]} 42... Qc7+ {[%clk 0:00:06.1]} 43.
Kh1 {[%clk 0:00:17.5]} 43... h4 {[%clk 0:00:05.5]} 44. e5 {[%clk 0:00:16.7]}
44... Qe7 {[%clk 0:00:05.1]} 45. Qd6 {[%clk 0:00:16.2]} 45... Qg5 {[%clk
0:00:05.2]} 46. Qd4 {[%clk 0:00:11.8]} 46... Qc1+ {[%clk 0:00:05]} 47. Kh2
{[%clk 0:00:11.8]} 47... Qg5 {[%clk 0:00:05.9]} 48. f4 {[%clk 0:00:11.8]} 48...
Qg3+ {[%clk 0:00:05.9]} 49. Kh1 {[%clk 0:00:12.3]} 49... Qe1+ {[%clk 0:00:06.8]}
50. Kh2 {[%clk 0:00:12.7]} 50... Qg3+ {[%clk 0:00:07.1]} 51. Kg1 {[%clk
0:00:12.7]} 51... Qe1+ {[%clk 0:00:08]} 52. Kh2 {[%clk 0:00:13.6]} 52... Qg3+
{[%clk 0:00:07.8]} 1/2-1/2

[Event "*** Titled Tuesday Blitz"]
[Site "Chess.com"]
[Date "2020.05.12"]
[Round "2"]
[White "SketchyMoves"]
[Black "gui_borba"]
[Result "1-0"]
[WhiteElo "2632"]
[BlackElo "2338"]
[TimeControl "180+1"]
[EndTime "10:18:56 PDT"]
[Termination "SketchyMoves won by resignation"]

1. b3 {[%clk 0:03:00.9]} 1... Nc6 {[%clk 0:02:58.9]} 2. Bb2 {[%clk 0:03:00.6]}
2... e5 {[%clk 0:02:59]} 3. e3 {[%clk 0:03:00.3]} 3... Nf6 {[%clk 0:02:58]} 4.
Nf3 {[%clk 0:03:00.2]} 4... Bd6 {[%clk 0:02:57.3]} 5. d4 {[%clk 0:03:00.1]} 5...
Qe7 {[%clk 0:02:53.4]} 6. Be2 {[%clk 0:02:55.4]} 6... O-O {[%clk 0:02:49.5]} 7.
c4 {[%clk 0:02:44.9]} 7... exd4 {[%clk 0:02:42.4]} 8. Nxd4 {[%clk 0:02:44.4]}
8... Nxd4 {[%clk 0:02:40.2]} 9. Qxd4 {[%clk 0:02:43]} 9... Re8 {[%clk
0:02:31.5]} 10. Nc3 {[%clk 0:02:37.8]} 10... Be5 {[%clk 0:02:31]} 11. Qd2 {[%clk
0:02:36.3]} 11... d6 {[%clk 0:02:25.2]} 12. O-O {[%clk 0:02:32.7]} 12... Ne4
{[%clk 0:02:12.9]} 13. Nxe4 {[%clk 0:02:26]} 13... Bxb2 {[%clk 0:02:12.8]} 14.
Qxb2 {[%clk 0:02:21]} 14... Qxe4 {[%clk 0:02:12.4]} 15. Rfd1 {[%clk 0:02:15.5]}
15... Qe5 {[%clk 0:02:07.6]} 16. Rd4 {[%clk 0:02:11.6]} 16... Be6 {[%clk
0:01:58.2]} 17. Rad1 {[%clk 0:02:04.5]} 17... Rad8 {[%clk 0:01:53.5]} 18. Qd2
{[%clk 0:01:56.3]} 18... a5 {[%clk 0:01:45.9]} 19. Bf3 {[%clk 0:01:51.8]} 19...
b5 {[%clk 0:01:38.2]} 20. Bc6 {[%clk 0:01:45.6]} 20... Bd7 {[%clk 0:01:23.1]}
21. Bxb5 {[%clk 0:01:32.1]} 21... Bxb5 {[%clk 0:01:21.5]} 22. Rd5 {[%clk
0:01:31.7]} 22... Qe6 {[%clk 0:01:17.2]} 23. Rxb5 {[%clk 0:01:26.5]} 23... a4
{[%clk 0:01:17.5]} 24. Qd5 {[%clk 0:01:14.7]} 24... axb3 {[%clk 0:01:16.6]} 25.
Qxe6 {[%clk 0:01:11.4]} 25... fxe6 {[%clk 0:01:15.7]} 26. axb3 {[%clk 0:01:11]}
26... Rb8 {[%clk 0:01:15.3]} 27. Rxb8 {[%clk 0:01:08.8]} 27... Rxb8 {[%clk
0:01:16.2]} 28. Rd3 {[%clk 0:01:06.2]} 28... Kf7 {[%clk 0:01:16.6]} 29. Kf1
{[%clk 0:01:06.6]} 29... e5 {[%clk 0:01:17]} 30. Ke2 {[%clk 0:01:05.7]} 30...
Ke6 {[%clk 0:01:17.4]} 31. Kd2 {[%clk 0:01:02.7]} 31... Ra8 {[%clk 0:01:14.6]}
32. Kc3 {[%clk 0:01:00.7]} 32... Ra1 {[%clk 0:01:12.6]} 33. Rd2 {[%clk
0:00:59.9]} 33... c6 {[%clk 0:01:11.3]} 34. e4 {[%clk 0:00:57.7]} 34... g5
{[%clk 0:01:09.4]} 35. b4 {[%clk 0:00:49.5]} 35... g4 {[%clk 0:01:08.1]} 36. Rb2
{[%clk 0:00:45.5]} 36... Rh1 {[%clk 0:01:03.8]} 37. b5 {[%clk 0:00:42]} 37...
cxb5 {[%clk 0:01:04.7]} 38. cxb5 {[%clk 0:00:42.6]} 38... Kd7 {[%clk 0:01:04.8]}
39. b6 {[%clk 0:00:41.4]} 39... Kc8 {[%clk 0:01:05.2]} 40. b7+ {[%clk
0:00:40.9]} 40... Kb8 {[%clk 0:01:05.4]} 41. Kc4 {[%clk 0:00:39.9]} 41... Rxh2
{[%clk 0:00:59.8]} 42. g3 {[%clk 0:00:38.8]} 42... Rh1 {[%clk 0:00:58.5]} 43.
Kd5 {[%clk 0:00:37.3]} 43... Rd1+ {[%clk 0:00:58.1]} 44. Kc6 {[%clk 0:00:33.6]}
44... Rd4 {[%clk 0:00:57.8]} 45. Ra2 {[%clk 0:00:32.1]} 45... Rc4+ {[%clk
0:00:58]} 46. Kd5 {[%clk 0:00:27.8]} 46... Rd4+ {[%clk 0:00:55.9]} 47. Kc6
{[%clk 0:00:27.9]} 47... Rc4+ {[%clk 0:00:55.9]} 48. Kxd6 {[%clk 0:00:23.7]}
48... Rxe4 {[%clk 0:00:53]} 49. Kc6 {[%clk 0:00:23.9]} 49... Rc4+ {[%clk
0:00:51.6]} 50. Kd5 {[%clk 0:00:24.3]} 50... Rc3 {[%clk 0:00:44.4]} 51. Rb2
{[%clk 0:00:20.8]} 51... h5 {[%clk 0:00:33.2]} 52. Kxe5 {[%clk 0:00:20.9]} 52...
h4 {[%clk 0:00:33.3]} 53. gxh4 {[%clk 0:00:20.3]} 53... Rh3 {[%clk 0:00:34.2]}
54. Kf4 {[%clk 0:00:19.1]} 54... Rxh4 {[%clk 0:00:34.6]} 55. Kg3 {[%clk
0:00:19.5]} 55... Rh7 {[%clk 0:00:29.8]} 56. Kxg4 {[%clk 0:00:19]} 56... Rxb7
{[%clk 0:00:30.7]} 57. Rxb7+ {[%clk 0:00:17.9]} 57... Kxb7 {[%clk 0:00:31.6]}
58. f4 {[%clk 0:00:17.9]} 58... Kc6 {[%clk 0:00:31.9]} 59. Kg5 {[%clk
0:00:18.4]} 59... Kd7 {[%clk 0:00:32.1]} 60. Kf5 {[%clk 0:00:17.7]} 60... Ke8
{[%clk 0:00:30.2]} 61. Ke6 {[%clk 0:00:17.4]} 61... Kf8 {[%clk 0:00:30.2]} 62.
f5 {[%clk 0:00:12.3]} 62... Ke8 {[%clk 0:00:30.2]} 63. f6 {[%clk 0:00:12.3]}
63... Kf8 {[%clk 0:00:30.6]} 64. f7 {[%clk 0:00:12.7]} 1-0

[Event "*** Titled Tuesday Blitz"]
[Site "Chess.com"]
[Date "2020.05.12"]
[Round "2"]
[White "etesungam"]
[Black "maurito96"]
[Result "0-1"]
[WhiteElo "2415"]
[BlackElo "2220"]
[TimeControl "180+1"]
[EndTime "10:18:57 PDT"]
[Termination "maurito96 won by resignation"]

1. d4 {[%clk 0:03:00.9]} 1... Nf6 {[%clk 0:02:58.8]} 2. Nf3 {[%clk 0:02:59.2]}
2... e6 {[%clk 0:02:54.4]} 3. c4 {[%clk 0:02:59]} 3... c5 {[%clk 0:02:52.9]} 4.
d5 {[%clk 0:02:58]} 4... exd5 {[%clk 0:02:52.4]} 5. cxd5 {[%clk 0:02:58.9]} 5...
d6 {[%clk 0:02:53]} 6. Nc3 {[%clk 0:02:58.8]} 6... g6 {[%clk 0:02:53]} 7. e4
{[%clk 0:02:58.5]} 7... Bg7 {[%clk 0:02:53]} 8. h3 {[%clk 0:02:58.2]} 8... O-O
{[%clk 0:02:51.2]} 9. Bd3 {[%clk 0:02:57.4]} 9... a6 {[%clk 0:02:51.2]} 10. a4
{[%clk 0:02:52.4]} 10... Nh5 {[%clk 0:02:49]} 11. O-O {[%clk 0:02:50.4]} 11...
Nd7 {[%clk 0:02:47.4]} 12. Re1 {[%clk 0:02:46.1]} 12... Re8 {[%clk 0:02:45.3]}
13. Bg5 {[%clk 0:02:45.6]} 13... Bf6 {[%clk 0:02:44.3]} 14. Bxf6 {[%clk
0:02:42]} 14... Qxf6 {[%clk 0:02:41.5]} 15. Qc2 {[%clk 0:02:39]} 15... Ne5
{[%clk 0:02:38.6]} 16. Nxe5 {[%clk 0:02:36]} 16... Rxe5 {[%clk 0:02:37.3]} 17.
a5 {[%clk 0:02:35.7]} 17... Bxh3 {[%clk 0:02:19.6]} 18. Re3 {[%clk 0:02:19.4]}
18... Bxg2 {[%clk 0:02:05.4]} 19. Kxg2 {[%clk 0:02:14.1]} 19... Nf4+ {[%clk
0:02:03]} 20. Kg1 {[%clk 0:02:07.2]} 20... Qh4 {[%clk 0:01:52]} 21. Rg3 {[%clk
0:02:03.5]} 21... Nh5 {[%clk 0:01:32.3]} 22. Rg2 {[%clk 0:01:54.5]} 22... Nf4
{[%clk 0:01:30.3]} 23. Rg3 {[%clk 0:01:48.4]} 23... Rh5 {[%clk 0:01:28.7]} 24.
Kf1 {[%clk 0:01:40.7]} 24... Qh1+ {[%clk 0:01:23.5]} 25. Rg1 {[%clk 0:01:40.5]}
25... Qh3+ {[%clk 0:01:23]} 26. Ke1 {[%clk 0:01:40.5]} 26... Nxd3+ {[%clk
0:01:20]} 27. Kd2 {[%clk 0:01:36.1]} 27... Ne5 {[%clk 0:01:19.5]} 28. Kc1 {[%clk
0:01:30.9]} 28... Qd3 {[%clk 0:01:08.6]} 29. Kb1 {[%clk 0:01:22.1]} 29... Rh2
{[%clk 0:01:01.5]} 30. Nd1 {[%clk 0:01:16.5]} 30... Qxc2+ {[%clk 0:00:59.7]} 31.
Kxc2 {[%clk 0:01:16.2]} 31... Re8 {[%clk 0:00:52.9]} 32. Ra3 {[%clk 0:01:11.9]}
32... Kg7 {[%clk 0:00:50.4]} 33. Rb3 {[%clk 0:01:10.3]} 33... Re7 {[%clk
0:00:50.7]} 34. Rgg3 {[%clk 0:01:02.7]} 34... h5 {[%clk 0:00:48]} 35. Kc3 {[%clk
0:00:59.9]} 35... h4 {[%clk 0:00:43.4]} 36. Re3 {[%clk 0:00:59.1]} 36... Ng4
{[%clk 0:00:37.8]} 37. Rf3 {[%clk 0:00:55.9]} 37... Nf6 {[%clk 0:00:25.6]} 38.
e5 {[%clk 0:00:49.9]} 38... dxe5 {[%clk 0:00:21.8]} 39. Ne3 {[%clk 0:00:42.8]}
39... e4 {[%clk 0:00:20.8]} 40. Rf4 {[%clk 0:00:41.5]} 40... h3 {[%clk
0:00:20.7]} 41. Rxf6 {[%clk 0:00:37.6]} 41... Kxf6 {[%clk 0:00:19.3]} 42. Ng4+
{[%clk 0:00:37.2]} 42... Kg5 {[%clk 0:00:18.4]} 43. Nxh2 {[%clk 0:00:38.1]}
43... e3 {[%clk 0:00:18.3]} 44. d6 {[%clk 0:00:36]} 44... e2 {[%clk 0:00:17.5]}
45. dxe7 {[%clk 0:00:34.8]} 45... e1=Q+ {[%clk 0:00:16.4]} 46. Kc4 {[%clk
0:00:34.3]} 46... Qxe7 {[%clk 0:00:16.2]} 47. Rg3+ {[%clk 0:00:32.5]} 47... Kf6
{[%clk 0:00:15.4]} 48. Rf3+ {[%clk 0:00:31.8]} 48... Kg7 {[%clk 0:00:15.4]} 49.
Re3 {[%clk 0:00:29.3]} 49... Qh4+ {[%clk 0:00:14.4]} 50. Kxc5 {[%clk 0:00:27]}
50... Qxf2 {[%clk 0:00:15.3]} 51. Ng4 {[%clk 0:00:26.3]} 51... Qxe3+ {[%clk
0:00:15.1]} 52. Nxe3 {[%clk 0:00:25.6]} 52... h2 {[%clk 0:00:15.6]} 0-1